[Event "7° Rencontres Internationales des Echecs Francophones"]
[Site "PARIS, France"]
[Date "2019.08.11"]
[Round "8.6"]
[White "Aloma Vidal, Robert"]
[Black "Macon, Arthur"]
[Result "1/2-1/2"]
[TimeControl "90'+ 30' + 30seconds/move"]
[WhiteTitle "IM"]
[BlackTitle "FM"]
[WhiteFideId "2260409"]
[BlackFideId "20654707"]
[WhiteElo "2419"]
[BlackElo "2279"]

1. e4 {[%clk 01:25:38]} {[%emt 00:05:21]} c6 {[%clk 01:30:18]} {[%emt
00:00:43]} 2. Nc3 {[%clk 01:19:33]} {[%emt 00:06:34]} d5 {[%clk 01:30:16]}
{[%emt 00:00:33]} 3. Nf3 {[%clk 01:19:57]} {[%emt 00:00:05]} dxe4 {[%clk
01:29:30]} {[%emt 00:01:16]} 4. Nxe4 {[%clk 01:20:24]} {[%emt 00:00:03]} Nf6
{[%clk 01:29:50]} {[%emt 00:00:09]} 5. Nxf6+ {[%clk 01:18:11]} {[%emt
00:02:43]} exf6 {[%clk 01:29:57]} {[%emt 00:00:24]} 6. Bc4 {[%clk 01:18:15]}
{[%emt 00:00:26]} Bd6 {[%clk 01:27:03]} {[%emt 00:03:24]} 7. Qe2+ {[%clk
01:18:29]} {[%emt 00:00:16]} Qe7 {[%clk 01:25:57]} {[%emt 00:01:35]} 8. Qxe7+
{[%clk 01:18:48]} {[%emt 00:00:12]} Kxe7 {[%clk 01:24:36]} {[%emt 00:01:51]} 9.
O-O {[%clk 01:19:11]} {[%emt 00:00:07]} Rd8 {[%clk 01:18:44]} {[%emt 00:06:22]}
10. Re1+ {[%clk 01:19:17]} {[%emt 00:00:23]} Kf8 {[%clk 01:19:02]} {[%emt
00:00:12]} 11. h3 {[%clk 01:19:31]} {[%emt 00:00:17]} Nd7 {[%clk 01:14:45]}
{[%emt 00:04:47]} 12. d4 {[%clk 01:19:49]} {[%emt 00:00:12]} Nb6 {[%clk
01:14:47]} {[%emt 00:00:28]} 13. Bd3 {[%clk 01:19:11]} {[%emt 00:01:08]} h6
{[%clk 01:10:59]} {[%emt 00:04:18]} 14. c4 {[%clk 01:17:52]} {[%emt 00:01:49]}
Bb4 {[%clk 01:06:35]} {[%emt 00:04:53]} 15. Re2 {[%clk 01:14:56]} {[%emt
00:03:28]} Be6 {[%clk 01:03:01]} {[%emt 00:04:03]} 16. b3 {[%clk 01:14:42]}
{[%emt 00:00:43]} Be7 {[%clk 00:49:20]} {[%emt 00:14:11]} 17. g4 {[%clk
01:04:06]} {[%emt 00:11:07]} g5 {[%clk 00:41:06]} {[%emt 00:08:44]} 18. Kg2
{[%clk 01:01:01]} {[%emt 00:03:35]} a5 {[%clk 00:39:41]} {[%emt 00:01:55]} 19.
a4 {[%clk 00:56:33]} {[%emt 00:04:58]} Nd7 {[%clk 00:35:03]} {[%emt 00:05:08]}
20. Be4 {[%clk 00:54:18]} {[%emt 00:02:45]} Nb8 {[%clk 00:33:08]} {[%emt
00:02:25]} 21. Bd2 {[%clk 00:51:58]} {[%emt 00:02:50]} Bb4 {[%clk 00:32:22]}
{[%emt 00:01:16]} 22. Bxb4+ {[%clk 00:48:18]} {[%emt 00:04:10]} axb4 {[%clk
00:32:49]} {[%emt 00:00:02]} 23. d5 {[%clk 00:47:16]} {[%emt 00:01:33]} cxd5
{[%clk 00:31:42]} {[%emt 00:01:37]} 24. cxd5 {[%clk 00:46:46]} {[%emt
00:01:00]} Bd7 {[%clk 00:31:56]} {[%emt 00:00:15]} 25. Rc1 {[%clk 00:42:42]}
{[%emt 00:04:34]} Na6 {[%clk 00:30:56]} {[%emt 00:01:31]} 26. Nd4 {[%clk
00:29:21]} {[%emt 00:13:52]} Rac8 {[%clk 00:27:14]} {[%emt 00:04:12]} 27. Rxc8
{[%clk 00:23:19]} {[%emt 00:06:32]} Rxc8 {[%clk 00:22:28]} {[%emt 00:05:15]} 28.
Bf5 {[%clk 00:20:00]} {[%emt 00:03:49]} Bxf5 {[%clk 00:17:31]} {[%emt
00:05:27]} 29. Nxf5 {[%clk 00:20:28]} {[%emt 00:00:02]} Rd8 {[%clk 00:16:52]}
{[%emt 00:01:09]} 30. Rc2 {[%clk 00:19:05]} {[%emt 00:01:53]} Ke8 {[%clk
00:11:14]} {[%emt 00:06:07]} 31. Re2+ {[%clk 00:17:22]} {[%emt 00:02:14]} Kf8
{[%clk 00:11:15]} {[%emt 00:00:28]} 32. d6 {[%clk 00:17:03]} {[%emt 00:00:49]}
Nc5 {[%clk 00:10:36]} {[%emt 00:01:09]} 33. Rc2 {[%clk 00:16:08]} {[%emt
00:01:24]} Nxb3 {[%clk 00:06:23]} {[%emt 00:04:45]} 34. Rc4 {[%clk 00:14:48]}
{[%emt 00:01:49]} Ke8 {[%clk 00:04:25]} {[%emt 00:02:29]} 35. Rxb4 {[%clk
00:14:08]} {[%emt 00:01:11]} Nc5 {[%clk 00:04:29]} {[%emt 00:00:25]} 36. a5
{[%clk 00:13:22]} {[%emt 00:01:16]} Kd7 {[%clk 00:01:17]} {[%emt 00:03:42]} 37.
Rc4 {[%clk 00:12:25]} {[%emt 00:01:27]} Kc6 {[%clk 00:00:45]} {[%emt 00:01:03]}
38. Rb4 {[%clk 00:05:48]} {[%emt 00:07:07]} Ra8 {[%clk 00:00:39]} {[%emt
00:00:36]} 39. Rb6+ {[%clk 00:05:59]} {[%emt 00:00:19]} Kd7 {[%clk 00:00:36]}
{[%emt 00:00:33]} 40. Nxh6 {[%clk 00:03:12]} {[%emt 00:03:16]} Rxa5 {[%clk
00:00:38]} {[%emt 00:00:29]} 41. Nxf7 {[%clk 00:03:39]} {[%emt 00:00:03]} Ra6
{[%clk 00:25:47]} {[%emt 00:05:51]} 42. Rb5 {[%clk 00:29:02]} {[%emt 00:06:07]}
b6 {[%clk 00:24:48]} {[%emt 00:01:29]} 43. h4 {[%clk 00:23:00]} {[%emt
00:06:32]} 1/2-1/2

[Event "7° Rencontres Internationales des Echecs Francophones"]
[Site "PARIS, France"]
[Date "2019.08.11"]
[Round "8.5"]
[White "Bouget, Alexandre"]
[Black "Rakotomaharo, Fy Antenaina"]
[Result "1/2-1/2"]
[TimeControl "90'+ 30' + 30seconds/move"]
[WhiteTitle "FM"]
[BlackTitle "IM"]
[WhiteFideId "681318"]
[BlackFideId "13100050"]
[WhiteElo "2281"]
[BlackElo "2438"]

1. d4 {[%clk 01:30:57]} {[%emt 00:00:02]} Nf6 {[%clk 01:30:57]} {[%emt
00:00:04]} 2. c4 {[%clk 01:31:19]} {[%emt 00:00:08]} g6 {[%clk 01:31:26]}
{[%emt 00:00:02]} 3. Nc3 {[%clk 01:31:31]} {[%emt 00:00:19]} d5 {[%clk
01:31:52]} {[%emt 00:00:03]} 4. cxd5 {[%clk 01:31:19]} {[%emt 00:00:42]} Nxd5
{[%clk 01:32:16]} {[%emt 00:00:06]} 5. e4 {[%clk 01:31:43]} {[%emt 00:00:05]}
Nxc3 {[%clk 01:32:42]} {[%emt 00:00:04]} 6. bxc3 {[%clk 01:32:09]} {[%emt
00:00:05]} Bg7 {[%clk 01:33:10]} {[%emt 00:00:02]} 7. Ba3 {[%clk 01:32:32]}
{[%emt 00:00:06]} Nd7 {[%clk 01:31:23]} {[%emt 00:02:17]} 8. Qb3 {[%clk
01:32:55]} {[%emt 00:00:06]} c5 {[%clk 01:27:28]} {[%emt 00:04:26]} 9. Rd1
{[%clk 01:33:13]} {[%emt 00:00:12]} Qa5 {[%clk 01:26:08]} {[%emt 00:01:50]} 10.
Nf3 {[%clk 01:30:34]} {[%emt 00:03:08]} O-O {[%clk 01:13:38]} {[%emt 00:13:01]}
11. Be2 {[%clk 01:30:59]} {[%emt 00:00:06]} Nf6 {[%clk 01:03:24]} {[%emt
00:10:44]} 12. e5 {[%clk 01:10:25]} {[%emt 00:21:03]} Be6 {[%clk 01:00:46]}
{[%emt 00:03:07]} 13. Qb2 {[%clk 01:10:46]} {[%emt 00:00:10]} Nd5 {[%clk
01:00:38]} {[%emt 00:00:38]} 14. Bxc5 {[%clk 01:09:07]} {[%emt 00:02:09]} Nxc3
{[%clk 00:57:02]} {[%emt 00:04:06]} 15. Qd2 {[%clk 00:58:05]} {[%emt 00:11:33]}
b6 {[%clk 00:52:08]} {[%emt 00:05:23]} 16. Rc1 {[%clk 00:30:24]} {[%emt
00:28:10]} bxc5 {[%clk 00:50:41]} {[%emt 00:01:57]} 17. dxc5 {[%clk 00:28:15]}
{[%emt 00:02:40]} Rab8 {[%clk 00:49:38]} {[%emt 00:01:33]} 18. Bd3 {[%clk
00:16:11]} {[%emt 00:12:34]} Qxa2 {[%clk 00:45:08]} {[%emt 00:05:01]} 19. Rxc3
{[%clk 00:14:27]} {[%emt 00:02:14]} Rb2 {[%clk 00:45:31]} {[%emt 00:00:05]} 20.
Rc2 {[%clk 00:07:51]} {[%emt 00:07:06]} Rxc2 {[%clk 00:45:29]} {[%emt
00:00:32]} 21. Qxc2 {[%clk 00:04:34]} {[%emt 00:03:48]} Qa1+ {[%clk 00:43:49]}
{[%emt 00:02:10]} 22. Qb1 {[%clk 00:04:12]} {[%emt 00:00:52]} Qc3+ {[%clk
00:34:09]} {[%emt 00:10:09]} 23. Ke2 {[%clk 00:04:23]} {[%emt 00:00:19]} Bh6
{[%clk 00:34:36]} {[%emt 00:00:03]} 24. Qc2 {[%clk 00:03:44]} {[%emt 00:01:09]}
Qxc2+ {[%clk 00:34:57]} {[%emt 00:00:10]} 25. Bxc2 {[%clk 00:04:08]} {[%emt
00:00:06]} Rc8 {[%clk 00:35:26]} {[%emt 00:00:01]} 26. Rd1 {[%clk 00:02:34]}
{[%emt 00:02:03]} Rxc5 {[%clk 00:35:37]} {[%emt 00:00:19]} 27. Rd8+ {[%clk
00:03:00]} {[%emt 00:00:05]} Kg7 {[%clk 00:36:04]} {[%emt 00:00:03]} 28. Be4
{[%clk 00:02:07]} {[%emt 00:01:23]} Ra5 {[%clk 00:34:29]} {[%emt 00:02:04]} 29.
Kd3 {[%clk 00:01:42]} {[%emt 00:00:55]} Ra3+ {[%clk 00:32:19]} {[%emt
00:02:40]} 30. Kd4 {[%clk 00:01:03]} {[%emt 00:01:10]} Ra2 {[%clk 00:31:06]}
{[%emt 00:01:42]} 31. Ra8 {[%clk 00:01:07]} {[%emt 00:00:27]} Bc1 {[%clk
00:30:40]} {[%emt 00:00:56]} 32. Kd3 {[%clk 00:01:10]} {[%emt 00:00:27]} g5
{[%clk 00:30:40]} {[%emt 00:00:30]} 33. Nd4 {[%clk 00:01:22]} {[%emt 00:00:19]}
Bf4 {[%clk 00:27:05]} {[%emt 00:04:04]} 34. Nxe6+ {[%clk 00:01:41]} {[%emt
00:00:11]} fxe6 {[%clk 00:27:31]} {[%emt 00:00:04]} 35. Re8 {[%clk 00:01:51]}
{[%emt 00:00:19]} Rd2+ {[%clk 00:27:55]} {[%emt 00:00:06]} 36. Kc4 {[%clk
00:01:44]} {[%emt 00:00:37]} Rd7 {[%clk 00:28:22]} {[%emt 00:00:03]} 37. Bc6
{[%clk 00:01:15]} {[%emt 00:01:00]} Rc7 {[%clk 00:28:27]} {[%emt 00:00:25]} 38.
Kb5 {[%clk 00:01:33]} {[%emt 00:00:12]} Bxe5 {[%clk 00:28:39]} {[%emt
00:00:18]} 39. Rd8 {[%clk 00:00:44]} {[%emt 00:01:19]} h5 {[%clk 00:26:15]}
{[%emt 00:02:53]} 40. h3 {[%clk 00:01:04]} {[%emt 00:00:11]} Bd6 {[%clk
00:25:59]} {[%emt 00:00:46]} 41. Rd7 {[%clk 00:00:50]} {[%emt 00:00:43]} a6+
{[%clk 00:25:32]} {[%emt 00:00:58]} 42. Kb6 {[%clk 00:01:16]} {[%emt 00:00:04]}
Rc8 {[%clk 00:25:59]} {[%emt 00:00:02]} 43. Ra7 {[%clk 00:27:12]} {[%emt
00:05:04]} Rf8 {[%clk 00:54:30]} {[%emt 00:02:30]} 44. f3 {[%clk 00:22:21]}
{[%emt 00:05:21]} Rf5 {[%clk 00:50:12]} {[%emt 00:04:47]} 45. Rxa6 {[%clk
00:22:29]} {[%emt 00:00:23]} Rc5 {[%clk 00:50:28]} {[%emt 00:00:14]} 46. Ra5
{[%clk 00:20:57]} {[%emt 00:02:03]} Rf5 {[%clk 00:49:48]} {[%emt 00:01:10]} 47.
Rxf5 {[%clk 00:20:22]} {[%emt 00:01:05]} exf5 {[%clk 00:50:14]} {[%emt
00:00:04]} 48. Be8 {[%clk 00:20:21]} {[%emt 00:00:30]} Kf6 {[%clk 00:48:21]}
{[%emt 00:02:24]} 49. Kc6 {[%clk 00:19:57]} {[%emt 00:00:53]} Ke5 {[%clk
00:48:30]} {[%emt 00:00:22]} 50. Bxh5 {[%clk 00:19:00]} {[%emt 00:01:26]} Kf4
{[%clk 00:48:53]} {[%emt 00:00:07]} 51. g4 {[%emt 00:02:44]} fxg4 {[%clk
00:49:17]} {[%emt 00:00:01]} 52. Bxg4 {[%clk 00:17:06]} {[%emt 00:00:14]} Ba3
{[%clk 00:49:43]} {[%emt 00:00:05]} 53. Kd5 {[%clk 00:17:11]} {[%emt 00:00:25]}
e5 {[%clk 00:50:11]} {[%emt 00:00:02]} 54. Kc4 {[%clk 00:17:24]} {[%emt
00:00:17]} Be7 {[%clk 00:50:33]} {[%emt 00:00:08]} 1/2-1/2

[Event "7° Rencontres Internationales des Echecs Francophones"]
[Site "PARIS, France"]
[Date "2019.08.11"]
[Round "8.8"]
[White "Shirazi, Kamran"]
[Black "Sim, Sylvain"]
[Result "1-0"]
[TimeControl "90'+ 30' + 30seconds/move"]
[WhiteTitle "IM"]
[BlackTitle "FM"]
[WhiteFideId "2000733"]
[BlackFideId "649970"]
[WhiteElo "2339"]
[BlackElo "2226"]

1. c4 {[%clk 01:29:17]} {[%emt 00:01:27]} Nf6 {[%clk 01:30:16]} {[%emt
00:00:44]} 2. g3 {[%clk 01:29:21]} {[%emt 00:00:27]} e6 {[%emt 00:00:50]} 3.
Bg2 {[%clk 01:29:34]} d5 {[%emt 00:00:27]} 4. Nf3 {[%clk 01:29:49]} {[%emt
00:00:13]} c6 {[%clk 01:28:35]} {[%emt 00:02:12]} 5. b3 {[%clk 01:29:09]}
{[%emt 00:01:11]} Bd6 {[%clk 01:28:01]} {[%emt 00:01:02]} 6. O-O {[%clk
01:29:20]} {[%emt 00:00:20]} O-O {[%clk 01:26:37]} {[%emt 00:01:54]} 7. Bb2
{[%clk 01:29:39]} {[%emt 00:00:11]} Nbd7 {[%clk 01:26:35]} {[%emt 00:00:32]} 8.
d3 {[%clk 01:29:53]} {[%emt 00:00:17]} Re8 {[%clk 01:26:27]} {[%emt 00:00:37]}
9. Nc3 {[%clk 01:28:14]} {[%emt 00:02:09]} Qe7 {[%clk 01:22:31]} {[%emt
00:04:26]} 10. Qc2 {[%clk 01:27:57]} {[%emt 00:00:48]} Ba3 {[%clk 01:21:59]}
{[%emt 00:01:02]} 11. Bxa3 {[%clk 01:28:02]} {[%emt 00:00:25]} Qxa3 {[%clk
01:22:19]} {[%emt 00:00:10]} 12. cxd5 {[%clk 01:28:27]} {[%emt 00:00:03]} exd5
{[%clk 01:22:30]} {[%emt 00:00:21]} 13. e4 {[%clk 01:28:53]} {[%emt 00:00:03]}
dxe4 {[%clk 01:22:30]} {[%emt 00:00:30]} 14. dxe4 {[%clk 01:29:21]} {[%emt
00:00:02]} Qc5 {[%clk 01:16:02]} {[%emt 00:06:57]} 15. Ne1 {[%clk 01:25:07]}
{[%emt 00:04:45]} Qh5 {[%clk 01:10:37]} {[%emt 00:05:54]} 16. f3 {[%clk
01:22:18]} {[%emt 00:03:19]} Nf8 {[%clk 01:07:46]} {[%emt 00:03:21]} 17. Nd3
{[%clk 01:22:07]} {[%emt 00:00:42]} Bh3 {[%clk 01:03:00]} {[%emt 00:05:15]} 18.
Nf4 {[%clk 00:42:17]} {[%emt 00:40:20]} Qc5+ {[%clk 00:55:05]} {[%emt
00:08:24]} 19. Rf2 {[%clk 00:42:40]} {[%emt 00:00:07]} Bxg2 {[%clk 00:55:05]}
{[%emt 00:00:31]} 20. Kxg2 {[%clk 00:43:01]} {[%emt 00:00:08]} Ne6 {[%clk
00:50:08]} {[%emt 00:05:26]} 21. Nxe6 {[%clk 00:42:45]} {[%emt 00:00:47]} Rxe6
{[%clk 00:50:25]} {[%emt 00:00:13]} 22. Rd1 {[%clk 00:43:13]} {[%emt 00:00:02]}
Qb6 {[%clk 00:38:03]} {[%emt 00:12:53]} 23. Rfd2 {[%clk 00:42:44]} {[%emt
00:00:59]} Ree8 {[%clk 00:37:07]} {[%emt 00:01:26]} 24. Na4 {[%clk 00:42:18]}
{[%emt 00:00:56]} Qc7 {[%clk 00:33:43]} {[%emt 00:03:53]} 25. Nc5 {[%clk
00:41:49]} {[%emt 00:00:59]} Qe7 {[%clk 00:32:12]} {[%emt 00:02:01]} 26. Rd6
{[%clk 00:40:34]} {[%emt 00:01:45]} Rec8 {[%clk 00:29:16]} {[%emt 00:03:26]} 27.
R6d4 {[%clk 00:36:07]} {[%emt 00:04:57]} g6 {[%clk 00:18:44]} {[%emt 00:11:02]}
28. Qc3 {[%clk 00:32:48]} {[%emt 00:03:49]} b6 {[%clk 00:13:55]} {[%emt
00:05:20]} 29. Na4 {[%clk 00:25:34]} {[%emt 00:07:44]} c5 {[%clk 00:11:30]}
{[%emt 00:02:55]} 30. Rd6 {[%clk 00:24:33]} {[%emt 00:01:29]} Rd8 {[%clk
00:11:32]} {[%emt 00:00:29]} 31. Qd2 {[%clk 00:24:40]} {[%emt 00:00:24]} Rxd6
{[%clk 00:11:29]} {[%emt 00:00:33]} 32. Qxd6 {[%clk 00:25:08]} {[%emt
00:00:02]} Re8 {[%clk 00:11:15]} {[%emt 00:00:43]} 33. Nc3 {[%clk 00:25:30]}
{[%emt 00:00:08]} Kg7 {[%clk 00:10:15]} {[%emt 00:01:30]} 34. Nb5 {[%clk
00:21:04]} {[%emt 00:04:56]} Qxd6 {[%clk 00:09:36]} {[%emt 00:01:10]} 35. Nxd6
{[%clk 00:20:31]} {[%emt 00:01:02]} Re7 {[%clk 00:09:32]} {[%emt 00:00:33]} 36.
Kf2 {[%clk 00:17:25]} {[%emt 00:03:37]} a6 {[%clk 00:04:09]} {[%emt 00:05:53]}
37. g4 {[%clk 00:15:48]} {[%emt 00:02:07]} h6 {[%clk 00:03:45]} {[%emt
00:00:55]} 38. h4 {[%clk 00:16:01]} {[%emt 00:00:17]} Kf8 {[%clk 00:01:41]}
{[%emt 00:02:33]} 39. Nc8 {[%clk 00:16:00]} {[%emt 00:00:32]} Rd7 {[%clk
00:01:43]} {[%emt 00:00:28]} 40. Rc1 {[%clk 00:15:26]} {[%emt 00:01:04]} b5
{[%clk 00:00:38]} {[%emt 00:01:36]} 41. Rxc5 {[%clk 00:15:00]} {[%emt
00:00:56]} Rd2+ {[%clk 00:00:43]} {[%emt 00:00:24]} 42. Kg3 {[%clk 00:14:57]}
{[%emt 00:00:33]} Rxa2 {[%clk 00:01:00]} {[%emt 00:00:14]} 43. Rc6 {[%clk
00:13:42]} {[%emt 00:01:45]} Ne8 {[%clk 00:19:14]} {[%emt 00:12:45]} 44. Nb6
{[%clk 00:43:17]} {[%emt 00:01:56]} Rb2 {[%clk 00:17:56]} {[%emt 00:01:49]} 45.
Nd5 {[%clk 00:43:29]} {[%emt 00:00:18]} Kg7 {[%clk 00:16:02]} {[%emt 00:02:24]}
46. b4 {[%clk 00:43:00]} {[%emt 00:00:58]} Ra2 {[%clk 00:16:09]} {[%emt
00:00:23]} 47. g5 {[%clk 00:42:08]} {[%emt 00:01:22]} hxg5 {[%clk 00:16:09]}
{[%emt 00:00:30]} 48. hxg5 {[%clk 00:42:34]} {[%emt 00:00:03]} f6 {[%clk
00:10:38]} {[%emt 00:06:02]} 49. gxf6+ {[%emt 00:02:22]} 1-0